bitfinex/quotes_SOLUSD_20240917
["timestamp","ask_amount","ask_price","bid_price","bid_amount"]
[1726605545449,0.3254395,132.27,132.18,6.4706]
[1726605545739,20.12549,132.25,132.18,6.4706]
[1726605546238,23.776884,132.24,132.12,53.67711716]
[1726605546422,0.25098,132.26,132.14,38.56014403]
[1726605546621,0.25098,132.26,132.16,38.56014403]
[1726605547016,0.25098,132.26,132.14,38.56014403]
[1726605547543,0.25098,132.26,132.15,23.902374]
[1726605548311,0.25098,132.26,132.16,0.12549]
[1726605548669,0.0744595,132.27,132.17,26.52526737]
[1726605548941,0.0744595,132.27,132.2,38.56014403]
[1726605549444,0.0744595,132.27,132.18,23.902374]
[1726605550341,0.0744595,132.27,132.2,38.56014403]
[1726605550723,0.12549,132.26,132.15,20.0]
[1726605551038,0.0744595,132.27,132.17,38.56014403]
[1726605551417,0.12549,132.26,132.17,38.56014403]
[1726605552433,0.0744595,132.27,132.18,23.776884]
[1726605552820,0.0744595,132.27,132.19,38.81112403]
[1726605555919,0.0744595,132.27,132.19,30.03806495]
[1726605557449,0.0744595,132.27,132.12,31.55127313]
[1726605557450,0.1999495,132.27,132.17,20.0]
[1726605559848,0.1999495,132.27,132.18,24.027864]
[1726605560537,0.0744595,132.27,132.18,62.58800803]
[1726605561462,0.0744595,132.27,132.18,24.027864]
[1726605562039,0.0744595,132.27,132.18,62.58800803]
[1726605562427,0.0744595,132.27,132.17,20.0]
[1726605562428,0.0744595,132.27,132.23,24.027864]
[1726605562630,0.0744595,132.27,132.24,38.56014403]
[1726605563031,0.0744595,132.27,132.23,24.027864]
[1726605563450,0.0744595,132.27,132.22,38.56014403]
[1726605564451,0.0744595,132.27,132.21,20.0]
[1726605564748,0.0744595,132.27,132.2,38.56014403]
[1726605564940,0.0744595,132.27,132.19,20.12549]
[1726605565338,0.0744595,132.27,132.16,38.56014403]
[1726605565339,0.12549,132.26,132.16,38.56014403]
[1726605565547,0.0744595,132.27,132.16,38.56014403]
[1726605565926,0.1999495,132.27,132.16,38.56014403]
[1726605566351,0.12549,132.26,132.16,38.56014403]
[1726605567251,0.12549,132.26,132.17,0.12549]
[1726605569332,0.0744595,132.27,132.18,38.56014403]
[1726605569537,0.0744595,132.27,132.2,38.56014403]
[1726605578769,0.0744595,132.27,132.23,38.56014403]
[1726605578939,0.0744595,132.27,132.21,38.56014403]
[1726605581869,0.0744595,132.27,132.22,1.36179257]
[1726605582034,0.0744595,132.27,132.21,38.56014403]
[1726605585067,0.0744595,132.27,132.22,1.3611746]
[1726605585461,0.0744595,132.27,132.21,38.56014403]
[1726605586045,0.0744595,132.27,132.24,24.05856114]
[1726605589048,0.0744595,132.27,132.22,24.05856114]
[1726605589758,0.0744595,132.27,132.24,24.05856114]
[1726605590769,20.0,132.3,132.24,24.05856114]
[1726605590966,20.0,132.3,132.19,23.902374]
[1726605590967,0.3327648,132.27,132.22,24.05856114]
[1726605593659,0.3327648,132.27,132.24,24.05856114]
[1726605594262,0.3327648,132.27,132.22,24.05856114]
[1726605596773,0.3327648,132.27,132.2,24.05856114]
[1726605597858,0.3327648,132.27,132.17,7.87513383]
[1726605597859,0.3327648,132.27,132.22,24.05856114]
[1726605600356,0.3327648,132.27,132.24,24.05856114]
[1726605604155,0.3327648,132.27,132.22,24.05856114]
[1726605606159,0.3327648,132.27,132.26,24.05856114]
[1726605609470,0.3327648,132.27,132.24,24.05856114]
[1726605611589,0.3327648,132.27,132.26,24.05856114]
[1726605612773,0.328168,132.31,132.26,24.05856114]
[1726605617599,0.328168,132.31,132.24,24.05856114]
[1726605617777,0.328168,132.31,132.22,24.05856114]
[1726605617778,24.027864,132.3,132.22,24.05856114]
[1726605617969,20.0,132.29,132.2,30.64516114]
[1726605618297,24.027864,132.28,132.2,24.05856114]
[1726605618869,23.902374,132.26,132.18,24.05856114]
[1726605619272,0.12549,132.25,132.18,24.05856114]
[1726605620074,23.902374,132.26,132.18,24.05856114]
[1726605623871,20.12549,132.26,132.18,24.05856114]
[1726605624575,20.12549,132.26,132.2,24.05856114]
[1726605624973,22.4332,132.27,132.2,24.05856114]
[1726605625299,6.4802,132.27,132.22,24.05856114]
[1726605630101,20.0,132.29,132.24,24.05856114]
[1726605631279,22.7649,132.3,132.24,24.05856114]
[1726605632679,0.12549,132.29,132.24,24.05856114]
[1726605634506,22.7649,132.3,132.26,24.05856114]
[1726605635009,22.7649,132.3,132.24,24.05856114]
[1726605636082,22.7649,132.3,132.22,24.05856114]
[1726605636520,0.12549,132.29,132.22,24.05856114]
[1726605636701,22.7649,132.3,132.22,24.05856114]
[1726605637111,0.12549,132.29,132.22,24.05856114]
[1726605639095,24.027864,132.29,132.2,24.05856114]
[1726605640709,31.587064,132.29,132.2,24.05856114]
[1726605641014,0.12549,132.25,132.18,24.05856114]
[1726605641203,0.12549,132.25,132.14,6.487868]
[1726605641204,23.902374,132.23,132.14,6.487868]
[1726605641418,23.902374,132.23,132.14,24.38672914]
[1726605641633,0.12549,132.22,132.14,24.38672914]
[1726605644021,23.902374,132.21,132.14,24.38672914]
[1726605645917,23.902374,132.19,132.14,0.328168]
[1726605646345,46.864874,132.17,132.14,0.328168]
[1726605646613,0.12549,132.16,132.14,0.328168]
[1726605647313,44.027864,132.15,132.14,0.328168]
[1726605647686,44.027864,132.15,132.11,0.2381883]
[1726605647891,20.12549,132.12,132.11,0.2381883]
[1726605648111,43.902374,132.12,132.11,0.2381883]
[1726605648298,44.027864,132.12,132.11,0.2381883]
[1726605649219,24.027864,132.11,132.08,0.328168]
[1726605650418,24.027864,132.11,132.07,0.4614218]
[1726605650722,35.702,132.12,132.07,0.4614218]
[1726605651301,23.902374,132.11,132.07,0.4614218]
[1726605651820,0.12549,132.1,132.07,0.4614218]
[1726605652019,23.902374,132.11,132.07,0.4614218]
[1726605652194,23.902374,132.09,132.07,0.4614218]
[1726605653698,26.6086,132.1,132.07,0.4614218]
[1726605654316,0.12549,132.09,132.07,0.4614218]
[1726605654621,6.6086,132.1,132.07,0.4614218]
[1726605655921,20.12549,132.11,132.07,0.4614218]
[1726605659132,6.1979,132.14,132.07,24.51998294]
[1726605659426,16.0019,132.16,132.09,24.05856114]
[1726605660201,6.0574,132.18,132.09,24.05856114]
[1726605661535,24.027864,132.16,132.09,24.05856114]
[1726605661721,24.027864,132.16,132.07,24.51998294]
[1726605662103,20.0,132.15,132.07,24.51998294]
[1726605662303,23.776884,132.14,132.07,24.51998294]
[1726605662504,23.776884,132.14,132.07,0.4614218]
[1726605663030,23.776884,132.12,132.07,0.4614218]
[1726605663326,0.25098,132.11,132.07,0.4614218]
[1726605663519,23.776884,132.1,132.07,0.4614218]
[1726605663713,0.12549,132.09,132.07,0.4614218]
[1726605664020,0.25098,132.09,132.07,0.4614218]
[1726605664523,23.776884,132.1,132.07,0.4614218]
[1726605666624,20.0,132.11,132.07,0.4614218]
[1726605667336,23.776884,132.1,132.07,0.4614218]
[1726605667714,20.0,132.11,132.07,0.4614218]
[1726605667928,23.902374,132.1,132.07,0.4614218]
[1726605669218,20.0,132.11,132.07,0.4614218]
[1726605669623,23.776884,132.1,132.07,0.4614218]
[1726605670536,30.92668487,132.2,132.1,22.146]
[1726605670721,30.92668487,132.2,132.13,24.05856114]
[1726605670915,22.5375808,132.22,132.13,24.05856114]
[1726605670916,72.5375808,132.22,132.13,24.05856114]
[1726605671227,72.5375808,132.22,132.11,24.05856114]
[1726605672417,80.1006808,132.22,132.11,24.47133299]
[1726605672618,72.5375808,132.22,132.11,24.47133299]
[1726605672819,24.027864,132.21,132.12,1.51357683]
[1726605673435,23.902374,132.21,132.12,1.51357683]
[1726605673643,22.5375808,132.22,132.11,24.05856114]
[1726605673843,22.5375808,132.22,132.12,1.51247226]
[1726605674030,20.0,132.21,132.12,1.51247226]
[1726605674419,22.5375808,132.22,132.13,24.05856114]
[1726605674947,0.12549,132.21,132.13,24.05856114]
[1726605675618,0.1084808,132.22,132.14,1.51224334]
[1726605675818,0.1084808,132.22,132.15,25.57069004]
[1726605676142,0.1084808,132.22,132.15,24.05856114]
[1726605677625,0.1084808,132.22,132.16,21.8115]
[1726605678117,0.1084808,132.22,132.16,23.32414299]
[1726605678638,0.1084808,132.22,132.16,21.8115]
[1726605679851,0.1084808,132.22,132.17,24.05856114]
[1726605680315,0.1084808,132.22,132.16,21.8115]
[1726605681836,0.1084808,132.22,132.17,24.05856114]
[1726605682341,0.1084808,132.22,132.16,21.8115]
[1726605682523,20.1084808,132.22,132.16,21.8115]
[1726605683328,0.1084808,132.22,132.16,21.8115]
[1726605683531,0.1084808,132.22,132.17,24.05856114]
[1726605683943,0.1084808,132.22,132.16,21.8115]
[1726605685128,20.2339708,132.22,132.16,21.8115]
[1726605686245,0.1084808,132.22,132.16,21.8115]
[1726605687952,20.1084808,132.22,132.16,21.8115]
[1726605688349,0.2339708,132.22,132.12,22.6769]
[1726605688551,43.902374,132.18,132.12,22.6769]
[1726605689057,51.467874,132.18,132.11,0.1764705]
[1726605689645,43.902374,132.18,132.11,0.1764705]
[1726605689947,51.467774,132.18,132.11,0.1764705]
[1726605691046,43.902374,132.18,132.11,0.1764705]
[1726605691639,43.902374,132.18,132.11,24.23503164]
[1726605691846,43.776884,132.18,132.11,24.23503164]
[1726605692143,20.0,132.2,132.11,24.23503164]
[1726605692536,20.0,132.18,132.11,24.23503164]
[1726605695927,20.0,132.21,132.12,0.72207892]
[1726605696154,20.0,132.21,132.13,24.7805854]
[1726605696155,23.902374,132.21,132.13,24.7805854]
[1726605696458,0.1084808,132.22,132.15,24.05856114]
[1726605702057,0.2339708,132.22,132.15,24.05856114]
[1726605703756,0.1084808,132.22,132.15,24.05856114]
[1726605705254,0.1084808,132.22,132.17,24.05856114]
[1726605705834,0.1084808,132.22,132.19,24.05856114]
[1726605706558,0.1084808,132.22,132.17,24.05856114]
[1726605707252,0.1084808,132.22,132.16,21.5438]
[1726605710057,0.1084808,132.22,132.17,24.05856114]
[1726605711960,24.027864,132.25,132.17,24.05856114]
[1726605712164,0.135207,132.22,132.17,24.05856114]
[1726605714663,0.135207,132.22,132.19,24.05856114]
[1726605718173,0.135207,132.22,132.17,0.12549]
[1726605718354,0.135207,132.22,132.16,21.5438]
[1726605718660,0.135207,132.22,132.16,45.60236114]
[1726605721363,0.135207,132.22,132.18,24.05856114]
[1726605721571,0.135207,132.22,132.19,0.99787158]
[1726605722077,0.135207,132.22,132.21,15.40504881]
[1726605724649,0.135207,132.22,132.2,15.40504881]
[1726605726274,0.135207,132.22,132.13,24.98220478]
[1726605726453,0.135207,132.22,132.17,15.40504881]
[1726605727155,0.135207,132.22,132.18,15.40504881]
[1726605728678,0.135207,132.22,132.19,15.40504881]
[1726605729160,0.135207,132.22,132.2,15.40504881]
[1726605729962,0.135207,132.22,132.21,15.40504881]
[1726605745172,0.135207,132.22,132.2,15.40504881]
[1726605745903,0.135207,132.22,132.21,15.40504881]
[1726605755684,0.135207,132.22,132.21,15.53053881]
[1726605756804,0.135207,132.22,132.21,15.65602881]
[1726605758283,0.2580282,132.26,132.22,0.25098]
[1726605758492,0.2580282,132.26,132.25,15.40504881]
[1726605761507,0.2580282,132.26,132.24,15.40504881]
[1726605765200,0.2580282,132.26,132.25,15.40504881]
[1726605771204,0.2580282,132.26,132.25,15.53053881]
[1726605771597,0.4962165,132.31,132.26,20.12549]
[1726605771921,0.4962165,132.31,132.3,15.40504881]
[1726605775127,0.4962165,132.31,132.29,15.40504881]
[1726605775722,0.4962165,132.31,132.26,15.40504881]
[1726605775918,0.4962165,132.31,132.24,0.12549]
[1726605775919,0.4962165,132.31,132.24,15.40504881]
[1726605776222,7.5586,132.3,132.23,15.40504881]
[1726605776430,7.5586,132.3,132.24,15.40504881]
[1726605776722,28.0542165,132.31,132.25,15.40504881]
[1726605776894,20.4962165,132.31,132.26,15.40504881]
[1726605777202,20.4962165,132.31,132.21,15.8006]
[1726605777203,0.4962165,132.31,132.27,15.40504881]
[1726605780724,0.4962165,132.31,132.3,15.40504881]
[1726605783633,0.4962165,132.31,132.29,15.40504881]
[1726605785237,0.4962165,132.31,132.3,15.40504881]
[1726605793942,0.4962165,132.31,132.3,35.40504881]
[1726605794121,0.2580282,132.34,132.3,35.40504881]
[1726605794321,0.2580282,132.34,132.33,15.40504881]
[1726605795019,0.2580282,132.34,132.33,16.4950091]
[1726605795940,0.2580282,132.34,132.33,16.6204991]
[1726605796131,0.4962165,132.39,132.33,39.30742281]
[1726605796321,0.4962165,132.39,132.38,15.40504881]
[1726605798042,0.4962165,132.39,132.37,15.40504881]
[1726605799116,0.4962165,132.39,132.36,15.40504881]
[1726605801740,0.4962165,132.39,132.37,15.40504881]
[1726605808830,0.4962165,132.39,132.34,0.12549]
[1726605809034,7.5577,132.32,132.24,0.2580282]
[1726605809325,7.5579,132.32,132.26,15.40504881]
[1726605809529,31.458674,132.34,132.26,15.40504881]
[1726605809736,31.458674,132.34,132.28,15.40504881]
[1726605809737,23.902374,132.34,132.28,15.40504881]
[1726605809938,20.12549,132.33,132.24,0.2580282]
[1726605810152,7.5592,132.29,132.24,0.2580282]
[1726605810535,44.027864,132.31,132.24,0.2580282]
[1726605810536,7.5586,132.3,132.24,0.2580282]
[1726605811052,13.7685,132.32,132.24,0.2580282]
[1726605811234,7.5581,132.31,132.24,0.2580282]
[1726605813333,7.5587,132.3,132.24,0.2580282]
[1726605815232,7.5591,132.29,132.24,0.2580282]
[1726605817663,7.5586,132.3,132.24,0.2580282]
[1726605818670,7.5586,132.3,132.24,24.31602064]
[1726605818869,7.5581,132.31,132.24,24.31602064]
[1726605820065,7.5588,132.3,132.24,0.2580282]
[1726605820465,7.5598,132.28,132.24,0.2580282]
[1726605820653,15.7224,132.29,132.24,0.2580282]
[1726605821269,7.5604,132.27,132.24,0.2580282]
[1726605822249,7.5614,132.26,132.24,0.2580282]
[1726605822449,7.5604,132.27,132.24,0.2580282]
[1726605822653,23.282,132.29,132.24,0.2580282]
[1726605822870,7.68559,132.28,132.24,0.2580282]
[1726605823569,7.5604,132.27,132.24,0.2580282]
[1726605824568,7.5609,132.26,132.24,0.2580282]
[1726605824761,23.902374,132.28,132.24,0.2580282]
[1726605824966,7.5604,132.27,132.24,0.2580282]
[1726605825768,7.5609,132.26,132.24,0.2580282]
[1726605826074,23.902374,132.28,132.24,0.2580282]
[1726605826878,7.5604,132.27,132.24,0.2580282]
[1726605827361,31.462074,132.28,132.24,0.2580282]
[1726605827557,7.5597,132.28,132.24,0.2580282]
[1726605830090,25.1049,132.32,132.24,0.2580282]
[1726605830386,20.0,132.31,132.24,0.2580282]
[1726605831380,7.5592,132.29,132.24,0.2580282]
[1726605832074,7.5592,132.29,132.24,15.65771787]
[1726605833378,7.5587,132.3,132.24,15.65771787]
[1726605833675,7.68419,132.3,132.24,15.65771787]
[1726605835670,7.5594,132.29,132.24,15.65771787]
[1726605836079,7.5598,132.28,132.24,15.65771787]
[1726605836569,7.5598,132.28,132.24,0.2580282]
[1726605837181,15.9232,132.33,132.24,0.2580282]
[1726605837182,1.31837151,132.34,132.27,15.39968967]
[1726605837385,18.8901,132.35,132.28,15.39968967]
[1726605838185,16.0081,132.36,132.3,15.39968967]
[1726605838853,7.5558,132.35,132.3,15.39968967]
[1726605839058,7.5563,132.34,132.3,15.39968967]
[1726605839271,7.5563,132.34,132.29,15.39968967]
[1726605840189,7.557,132.33,132.28,15.39968967]
[1726605840360,7.5577,132.32,132.28,15.39968967]
[1726605840981,7.557,132.33,132.28,15.39968967]
[1726605841791,7.557,132.33,132.26,0.12549]
[1726605841792,7.557,132.33,132.29,15.39968967]
[1726605843471,7.5564,132.34,132.29,15.39968967]
[1726605844172,7.5564,132.34,132.26,0.12549]
[1726605844173,7.5564,132.34,132.3,15.39968967]
[1726605845972,7.5564,132.34,132.29,15.39968967]
[1726605846180,7.5569,132.33,132.29,15.39968967]
[1726605846886,7.5564,132.34,132.29,15.39968967]
[1726605847764,7.5564,132.34,132.3,15.39968967]
[1726605848285,16.13359,132.36,132.3,15.39968967]
[1726605849379,7.5563,132.34,132.3,15.39968967]
[1726605850189,7.5558,132.35,132.31,15.39968967]
[1726605850588,7.5558,132.35,132.3,15.39968967]
[1726605852167,7.5564,132.34,132.29,15.39968967]
[1726605852400,7.5569,132.33,132.29,15.39968967]
[1726605852599,7.5564,132.34,132.29,15.39968967]
[1726605853103,7.5568,132.33,132.29,15.39968967]
[1726605853299,7.5568,132.33,132.25,6.3222]
[1726605853512,7.5578,132.32,132.25,6.3222]
[1726605853800,7.5585,132.31,132.27,15.39968967]
[1726605853964,7.5575,132.32,132.27,15.39968967]
[1726605854967,7.5575,132.32,132.28,15.39968967]
[1726605855772,7.5569,132.33,132.29,15.39968967]
[1726605856085,7.5569,132.33,132.28,15.39968967]
[1726605857601,7.68179,132.34,132.28,15.39968967]
[1726605857780,0.12549,132.34,132.28,15.39968967]
[1726605859276,7.5574,132.32,132.28,15.39968967]
[1726605867603,7.5574,132.32,132.27,15.39968967]
[1726605870126,7.5574,132.32,132.28,15.39968967]
[1726605873328,7.558,132.31,132.27,15.39968967]
[1726605873626,0.12549,132.33,132.25,6.3222]
[1726605873925,0.12549,132.32,132.25,15.39968967]
[1726605874260,7.5587,132.3,132.25,15.39968967]
[1726605874608,7.5581,132.31,132.26,15.39968967]
[1726605874835,7.5581,132.31,132.27,15.39968967]
[1726605879528,7.5581,132.31,132.26,15.39968967]
[1726605882520,7.5581,132.31,132.24,15.6685282]
[1726605882705,7.5581,132.31,132.26,15.39968967]
[1726605882910,7.5586,132.3,132.24,15.6685282]
[1726605883314,7.5586,132.3,132.26,15.39968967]
[1726605883518,7.5586,132.3,132.24,15.6685282]
[1726605883716,7.5586,132.3,132.25,15.39968967]
[1726605884525,7.5586,132.3,132.24,15.6685282]
[1726605884728,7.5586,132.3,132.25,15.39968967]
[1726605887645,7.5586,132.3,132.24,15.6685282]
[1726605887822,15.8863,132.31,132.24,15.65771787]
[1726605888133,0.12549,132.3,132.24,15.65771787]
[1726605889420,7.5592,132.29,132.24,15.65771787]
[1726605892441,7.68409,132.3,132.25,15.39968967]
[1726605892644,0.12549,132.3,132.24,0.2580282]
[1726605892847,7.5593,132.29,132.24,0.2580282]
[1726605895040,23.902374,132.29,132.24,0.2580282]
[1726605895346,7.5614,132.25,132.24,0.2580282]
[1726605897235,7.561,132.26,132.24,0.2580282]
[1726605898341,7.5603,132.27,132.24,0.2580282]
[1726605898841,7.5609,132.26,132.24,0.2580282]
[1726605900647,7.5598,132.28,132.24,15.65771787]
[1726605900857,7.5587,132.3,132.26,15.39968967]
[1726605901154,7.5581,132.31,132.28,15.39968967]
[1726605904654,1.31845448,132.36,132.3,15.39968967]
[1726605904828,7.5552,132.36,132.32,15.39968967]
[1726605905031,23.1764,132.37,132.33,15.39968967]
[1726605906548,7.5557,132.35,132.3,15.39968967]
[1726605906730,15.6217,132.37,132.3,15.39968967]
[1726605907146,7.5557,132.35,132.3,15.39968967]
[1726605908642,7.5558,132.35,132.3,15.39968967]
[1726605909154,0.12549,132.35,132.29,15.2915]
[1726605909648,0.12549,132.35,132.29,30.69118967]
[1726605910269,7.5564,132.34,132.29,30.69118967]
[1726605910857,0.12549,132.35,132.26,6.4493]
[1726605910858,7.5576,132.32,132.26,21.84898967]
[1726605911038,7.5581,132.31,132.26,21.84898967]
[1726605911242,7.5586,132.3,132.25,15.2208]
[1726605911451,7.5593,132.29,132.24,15.65771787]
[1726605911783,7.5593,132.29,132.24,0.2580282]
[1726605912958,15.9564,132.32,132.24,0.2580282]
[1726605913254,15.9564,132.32,132.26,15.39968967]
[1726605913756,7.5583,132.31,132.26,15.39968967]
[1726605914927,15.9564,132.32,132.26,15.39968967]
[1726605915157,7.559,132.3,132.25,15.39968967]
[1726605915953,7.5578,132.32,132.26,15.39968967]
[1726605916170,7.5578,132.32,132.27,15.39968967]
[1726605917041,7.558,132.31,132.26,15.39968967]
[1726605920961,23.902374,132.34,132.28,15.39968967]
[1726605921131,16.3847,132.35,132.29,15.39968967]
[1726605921335,23.9404,132.35,132.31,15.39968967]
[1726605921557,7.5552,132.36,132.32,15.39968967]
[1726605922251,7.5552,132.36,132.33,15.39968967]
[1726605922444,62.09399569,132.38,132.34,15.39968967]
[1726605923362,62.09399569,132.38,132.32,15.39968967]
[1726605923551,7.5547,132.37,132.32,15.39968967]
[1726605925663,7.5547,132.37,132.29,44.027864]
[1726605925838,7.5547,132.37,132.32,15.39968967]
[1726605926845,7.5547,132.37,132.33,15.39968967]
[1726605927162,54.53949569,132.38,132.33,15.39968967]
[1726605927335,38.62599569,132.38,132.34,15.39968967]
[1726605927534,38.62599569,132.38,132.35,15.39968967]
[1726605928340,38.62599569,132.38,132.32,16.5726]
[1726605928341,38.62599569,132.38,132.36,15.39968967]
[1726605929760,38.62599569,132.38,132.35,15.39968967]
[1726605930238,8.0500165,132.39,132.35,15.39968967]
[1726605930849,0.4962165,132.39,132.35,15.39968967]
[1726605932772,0.4962165,132.39,132.33,0.12549]
[1726605932773,0.4962165,132.39,132.37,15.39968967]
[1726605935779,0.4962165,132.39,132.36,15.39968967]
[1726605936792,0.4962165,132.39,132.37,15.39968967]
[1726605937256,0.4962165,132.39,132.36,15.39968967]
[1726605940181,0.4962165,132.39,132.33,0.12549]
[1726605940486,0.4962165,132.39,132.32,16.5726]
[1726605940487,7.555,132.37,132.32,16.5726]
[1726605940666,7.5552,132.36,132.32,16.5726]
[1726605940980,7.5552,132.36,132.31,21.90398967]
[1726605941668,7.5547,132.37,132.31,21.90398967]
[1726605941864,7.554,132.38,132.32,15.39968967]
[1726605942070,7.554,132.38,132.34,15.39968967]
[1726605943079,7.554,132.38,132.33,15.39968967]
[1726605945385,0.4962165,132.39,132.34,15.39968967]
[1726605945591,0.4962165,132.39,132.33,15.39968967]
[1726605946477,7.5547,132.37,132.32,15.39968967]
[1726605949401,7.5541,132.38,132.33,15.39968967]
[1726605949587,7.5541,132.38,132.34,15.80164779]
[1726605949897,7.5541,132.38,132.34,15.39968967]
[1726605952397,7.5541,132.38,132.33,15.39968967]
[1726605952600,7.5541,132.38,132.34,15.39968967]
[1726605953789,8.0497165,132.39,132.34,15.39968967]
[1726605954489,0.4962165,132.39,132.35,15.39968967]
[1726605954698,0.4962165,132.39,132.35,16.15071735]
[1726605954994,8.0498165,132.39,132.35,16.15071735]
[1726605955187,8.0498165,132.39,132.35,15.39968967]
[1726605955487,0.4962165,132.39,132.35,15.39968967]
[1726605955666,0.4962165,132.39,132.36,15.39968967]
[1726605955861,0.4962165,132.39,132.35,15.39968967]
[1726605956291,0.4962165,132.39,132.36,0.75057375]
[1726605957068,0.4962165,132.39,132.36,16.15026342]
[1726605957273,0.4962165,132.39,132.37,0.75254547]
[1726605957694,0.4962165,132.39,132.36,15.39968967]
[1726605960295,0.4962165,132.39,132.37,15.39968967]
[1726605960478,0.4962165,132.39,132.37,16.2705015]
[1726605961087,0.4962165,132.39,132.37,15.39968967]
[1726605961399,0.4962165,132.39,132.38,15.39968967]
[1726605961689,0.4962165,132.39,132.38,16.36787682]
[1726605961873,0.4962165,132.39,132.38,15.39968967]
[1726605963481,0.4962165,132.39,132.38,39.42755367]
[1726605963781,0.4962165,132.39,132.38,40.93776218]
[1726605963980,0.4962165,132.39,132.38,39.42755367]
[1726605964202,0.4962165,132.39,132.38,15.65066967]
[1726605964579,0.4962165,132.39,132.36,6.5169]
[1726605964777,0.4962165,132.39,132.38,15.39968967]
[1726605965685,0.4962165,132.39,132.38,15.52517967]
[1726605966393,0.4962165,132.39,132.38,15.39968967]
[1726605966597,0.4962165,132.39,132.34,15.6217]
[1726605966772,0.4962165,132.39,132.35,15.39968967]
[1726605966970,8.0498165,132.39,132.32,13.56501356]
[1726605967194,0.4962165,132.39,132.33,15.39968967]
[1726605967376,8.0497165,132.39,132.34,15.39968967]
[1726605967796,8.0497165,132.39,132.35,15.39968967]
[1726605969488,0.4962165,132.39,132.36,15.39968967]
[1726605969896,0.4962165,132.39,132.37,15.39968967]
[1726605970087,0.4962165,132.39,132.38,15.39968967]
[1726605973099,0.4962165,132.39,132.37,15.39968967]
[1726605973301,0.4962165,132.39,132.36,15.39968967]
[1726605973495,0.4962165,132.39,132.35,15.39968967]
[1726605974007,0.4962165,132.39,132.38,15.39968967]
[1726605974183,0.4962165,132.39,132.38,15.52517967]
[1726605974990,0.4962165,132.39,132.38,39.42755367]
[1726605978486,0.4962165,132.39,132.38,15.52517967]
[1726605982108,0.4962165,132.39,132.38,15.39968967]
[1726605985806,0.4962165,132.39,132.38,39.42755367]
[1726605989099,0.4962165,132.39,132.37,20.12549]
[1726605989306,0.4962165,132.39,132.38,15.39968967]
[1726605991613,0.4962165,132.39,132.38,15.52517967]
[1726605992798,0.4962165,132.39,132.38,15.65066967]
[1726605993617,0.4962165,132.39,132.38,39.42755367]
[1726605994117,0.4962165,132.39,132.38,59.42755367]
[1726605994497,0.2580282,132.42,132.39,24.027864]
[1726605994693,0.2580282,132.42,132.41,15.39968967]
[1726605994897,0.2580282,132.42,132.41,15.52517967]
[1726605995821,0.2580282,132.42,132.41,15.39968967]
[1726605996027,0.2580282,132.42,132.4,15.39968967]
[1726605996219,0.2580282,132.42,132.39,15.39968967]
[1726605998018,0.2580282,132.42,132.4,15.39968967]
[1726606005201,0.2580282,132.42,132.38,20.0]
[1726606005400,0.2580282,132.42,132.39,15.39968967]
[1726606006512,0.2580282,132.42,132.4,15.39968967]
[1726606012235,0.2580282,132.42,132.41,15.39968967]
[1726606020533,0.2580282,132.42,132.4,15.39968967]
[1726606021541,0.2580282,132.42,132.41,15.39968967]
[1726606024642,0.2580282,132.42,132.39,15.39968967]
[1726606025235,0.2580282,132.42,132.39,24.99362743]
[1726606025433,0.2580282,132.42,132.39,15.39968967]
[1726606025633,0.2580282,132.42,132.4,15.39968967]
[1726606027241,0.2580282,132.42,132.41,15.39968967]
[1726606027554,0.2580282,132.42,132.4,15.39968967]
[1726606027723,0.2580282,132.42,132.39,15.39968967]
[1726606028142,0.2580282,132.42,132.4,15.39968967]
[1726606028643,7.5523,132.41,132.36,15.39968967]
[1726606028832,7.5529,132.4,132.36,9.59873208]
[1726606029437,7.5529,132.4,132.35,9.59873208]
[1726606030462,7.5529,132.4,132.34,15.39968967]
[1726606030628,7.5529,132.4,132.35,15.39968967]
[1726606031330,0.12549,132.41,132.35,15.39968967]
[1726606031937,7.5534,132.4,132.34,15.39968967]
[1726606032633,0.25098,132.41,132.34,15.39968967]
[1726606032831,0.12549,132.41,132.35,15.39968967]
[1726606033355,7.5529,132.4,132.35,15.39968967]
[1726606033851,7.5529,132.4,132.34,15.39968967]
[1726606035728,7.5534,132.39,132.34,15.39968967]
[1726606036454,15.8215,132.38,132.32,25.00344856]
[1726606036649,23.3757,132.38,132.32,15.39968967]
[1726606036952,7.5546,132.37,132.31,15.39968967]
[1726606038628,7.5546,132.37,132.32,15.39968967]
[1726606039861,23.3756,132.38,132.32,15.39968967]
[1726606049679,7.5546,132.37,132.32,15.39968967]
[1726606051567,7.5546,132.37,132.28,0.2580282]